bitfinex/quotes_BTCUSD_20250813
["timestamp","ask_amount","ask_price","bid_price","bid_amount"]
[1755116829123,1.20063278,122550.0,122540.0,4.58764588]
[1755116829983,0.75340302,122550.0,122540.0,4.58764588]
[1755116830194,1.20063278,122550.0,122540.0,4.58764588]
[1755116830882,0.75340302,122550.0,122540.0,4.58764588]
[1755116831137,1.20063278,122550.0,122540.0,4.58764588]
[1755116831314,0.75340302,122550.0,122540.0,4.58764588]
[1755116831516,0.58508433,122550.0,122540.0,4.58764588]
[1755116831725,0.58508433,122550.0,122540.0,4.45584588]
[1755116832149,0.58508433,122550.0,122540.0,4.58736588]
[1755116832795,0.57745619,122550.0,122540.0,4.58736588]
[1755116833008,0.56782409,122550.0,122540.0,4.58636588]
[1755116833230,0.57545649,122550.0,122540.0,4.58636588]
[1755116833463,0.58408873,122550.0,122540.0,4.58736588]
[1755116834525,0.58408873,122550.0,122540.0,4.58732588]
[1755116836817,1.03131849,122550.0,122540.0,4.45584588]
[1755116837044,1.03131849,122550.0,122540.0,4.58716588]
[1755116837452,1.03435849,122550.0,122540.0,4.58716588]
[1755116837657,0.58712873,122550.0,122540.0,4.58716588]
[1755116838092,1.03435849,122550.0,122540.0,4.58716588]
[1755116838833,1.19755718,122550.0,122540.0,4.58716588]
[1755116839043,0.75240742,122550.0,122540.0,4.45584588]
[1755116839250,1.19963718,122550.0,122540.0,4.58712588]
[1755116839654,1.19963718,122550.0,122540.0,4.45584588]
[1755116839878,1.18437269,122550.0,122540.0,4.58716588]
[1755116841736,1.18437269,122550.0,122540.0,4.58526585]
[1755116842643,0.73714293,122550.0,122540.0,4.58526585]
[1755116842843,1.18437269,122550.0,122540.0,4.58526585]
[1755116843649,1.021174,122550.0,122540.0,4.58514585]
[1755116844063,1.019094,122550.0,122540.0,4.58514585]
[1755116844444,1.019094,122550.0,122540.0,4.45394585]
[1755116844445,0.56882424,122550.0,122540.0,4.45394585]
[1755116844639,1.01605882,122550.0,122540.0,4.58514585]
[1755116845258,0.56882906,122550.0,122540.0,4.58514585]
[1755116845467,1.01605882,122550.0,122540.0,4.58514585]
[1755116845665,0.56882906,122550.0,122540.0,4.58514585]
[1755116845889,1.01605882,122550.0,122540.0,4.58514585]
[1755116847030,0.07882906,122550.0,122540.0,4.58514585]
[1755116847229,0.21138004,122550.0,122540.0,4.45394585]
[1755116847444,0.21138004,122550.0,122540.0,4.58530585]
[1755116847656,0.2071327,122550.0,122540.0,4.58530585]
[1755116847863,0.64733148,122550.0,122540.0,4.58530585]
[1755116848356,0.20010172,122550.0,122540.0,4.58530585]
[1755116848552,0.64733148,122550.0,122540.0,4.58530585]
[1755116848737,0.20010172,122550.0,122540.0,4.58530585]
[1755116848950,0.64733148,122550.0,122540.0,4.58530585]
[1755116850000,0.20010172,122550.0,122540.0,4.58530585]
[1755116850180,0.64733148,122550.0,122540.0,4.58530585]
[1755116851567,0.20010172,122550.0,122540.0,4.58530585]
[1755116851776,0.64733148,122550.0,122540.0,4.58530585]
[1755116852494,0.20010172,122550.0,122540.0,4.58530585]
[1755116852699,0.64733148,122550.0,122540.0,4.58530585]
[1755116853144,0.20010172,122550.0,122540.0,4.58530585]
[1755116853383,0.19246466,122550.0,122540.0,4.58550585]
[1755116854055,0.63969442,122550.0,122540.0,4.58550585]
[1755116854585,0.19246466,122550.0,122540.0,4.58550585]
[1755116854787,0.63969442,122550.0,122540.0,4.58550585]
[1755116855229,0.19246466,122550.0,122540.0,4.58550585]
[1755116856071,0.19246466,122550.0,122540.0,4.45394585]
[1755116856304,0.19246466,122550.0,122540.0,4.58542585]
[1755116857263,0.19246466,122550.0,122540.0,4.59690895]
[1755116857999,0.63969442,122550.0,122540.0,4.59690895]
[1755116858811,0.63969442,122550.0,122540.0,4.58542585]
[1755116859408,0.66416442,122550.0,122540.0,4.58542585]
[1755116860125,0.19246466,122550.0,122540.0,4.58542585]
[1755116860312,0.19246466,122550.0,122540.0,4.45394585]
[1755116860512,0.19246466,122550.0,122540.0,4.58518585]
[1755116864451,0.17501564,122550.0,122540.0,5.03229561]
[1755116864867,0.17501564,122550.0,122540.0,4.90117561]
[1755116865071,0.17501564,122550.0,122540.0,5.03129561]
[1755116865345,0.20901564,122550.0,122540.0,5.03129561]
[1755116865514,0.21101564,122550.0,122540.0,5.03829561]
[1755116865719,0.21001564,122550.0,122540.0,5.03429561]
[1755116867710,0.21001564,122550.0,122540.0,5.03529561]
[1755116867900,0.21101564,122550.0,122540.0,4.59106585]
[1755116868132,0.21101564,122550.0,122540.0,5.03829561]
[1755116869528,0.21101564,122550.0,122540.0,4.59106585]
[1755116869729,0.21101564,122550.0,122540.0,5.03829561]
[1755116869925,0.21101564,122550.0,122540.0,4.59106585]
[1755116870193,0.21101564,122550.0,122540.0,5.03829561]
[1755116870727,0.21101564,122550.0,122540.0,4.59106585]
[1755116870926,0.21101564,122550.0,122540.0,5.03829561]
[1755116871580,0.21101564,122550.0,122540.0,5.14001561]
[1755116872685,0.21101564,122550.0,122540.0,4.69278585]
[1755116872944,0.21101564,122550.0,122540.0,5.14001561]
[1755116873315,0.20861564,122550.0,122540.0,5.14001561]
[1755116874141,0.20861564,122550.0,122540.0,5.14001561]
[1755116877477,0.20861564,122550.0,122540.0,5.00889561]
[1755116877690,0.20861564,122550.0,122540.0,5.13961561]
[1755116878153,0.20861564,122550.0,122540.0,5.13945561]
[1755116878664,0.20861564,122550.0,122540.0,5.00889561]
[1755116878879,0.20861564,122550.0,122540.0,5.13945561]
[1755116880100,0.20861564,122550.0,122540.0,5.03773561]
[1755116880767,0.20861564,122550.0,122540.0,4.74450583]
[1755116880969,0.20861564,122550.0,122540.0,4.87494583]
[1755116881618,0.20861564,122550.0,122540.0,4.97666583]
[1755116881841,0.20861564,122550.0,122540.0,4.97658583]
[1755116882519,0.20861564,122550.0,122540.0,4.97654583]
[1755116884392,0.20861564,122550.0,122540.0,4.52931607]
[1755116884600,0.20861564,122550.0,122540.0,4.97654583]
[1755116885054,0.21186564,122550.0,122540.0,4.97654583]
[1755116888833,0.21186564,122550.0,122540.0,4.52931607]
[1755116889034,0.21186564,122550.0,122540.0,4.97654583]
[1755116890105,0.21186564,122550.0,122540.0,4.39899607]
[1755116890348,0.21396564,122550.0,122540.0,4.39899607]
[1755116890634,0.21396564,122550.0,122540.0,4.97602583]
[1755116895798,0.21186564,122550.0,122540.0,4.97602583]
[1755116898370,0.21186564,122550.0,122540.0,4.39899607]
[1755116898705,0.21186564,122550.0,122540.0,4.97554583]
[1755116900708,0.21186564,122550.0,122540.0,4.84622583]
[1755116900947,0.21186564,122550.0,122540.0,4.97542583]
[1755116902462,0.20861564,122550.0,122540.0,4.97542583]
[1755116902675,0.20861564,122550.0,122540.0,4.84622583]
[1755116902884,0.187,122550.0,122540.0,4.84622583]
[1755116903559,0.187,122550.0,122540.0,4.97526583]
[1755116903766,0.187,122550.0,122540.0,4.87354583]
[1755116905878,0.187,122550.0,122540.0,4.87054583]
[1755116906046,0.186,122550.0,122540.0,4.87054583]
[1755116906187,0.186,122550.0,122540.0,4.54594583]
[1755116906598,0.186,122550.0,122540.0,4.67482583]
[1755116907326,0.187,122550.0,122540.0,4.67782583]
[1755116907538,0.186,122550.0,122540.0,4.67382583]
[1755116907744,0.185,122550.0,122540.0,4.67382583]
[1755116907943,0.186,122550.0,122540.0,4.67682583]
[1755116908608,0.186,122550.0,122540.0,4.67674583]
[1755116909529,0.186,122550.0,122540.0,4.66674583]
[1755116909761,0.19123,122550.0,122540.0,4.53794583]
[1755116909941,0.19123,122550.0,122540.0,4.66666583]
[1755116911506,0.19123,122550.0,122540.0,4.96402583]
[1755116911660,0.1892,122550.0,122540.0,4.96402583]
[1755116914521,0.1892,122550.0,122540.0,4.51679607]
[1755116914952,0.1892,122550.0,122540.0,4.83530583]
[1755116915161,0.1892,122550.0,122540.0,4.96382583]
[1755116917134,0.19123,122550.0,122540.0,4.96378583]
[1755116918118,0.19123,122550.0,122540.0,4.51655607]
[1755116918326,0.19123,122550.0,122540.0,4.96378583]
[1755116918768,0.19123,122550.0,122540.0,4.38807607]
[1755116918981,0.19123,122550.0,122540.0,4.96358583]
[1755116919964,0.1892,122550.0,122540.0,4.96358583]
[1755116920816,0.1892,122550.0,122540.0,5.18671835]
[1755116921517,0.1892,122550.0,122540.0,5.05843835]
[1755116921725,0.1892,122550.0,122540.0,5.18667835]
[1755116923225,0.1892,122550.0,122540.0,5.05843835]
[1755116923435,0.19123,122550.0,122540.0,4.51631607]
[1755116923646,0.19123,122550.0,122540.0,5.18667835]
[1755116926525,0.1892,122550.0,122540.0,5.18667835]
[1755116927124,0.19123,122550.0,122540.0,4.38807607]
[1755116927470,0.17623,122550.0,122540.0,4.85149721]
[1755116927863,0.17623,122550.0,122540.0,5.18667835]
[1755116929066,0.17623,122550.0,122540.0,5.05843835]
[1755116929267,0.171,122550.0,122540.0,5.18667835]
[1755116929874,0.171,122550.0,122540.0,4.51631607]
[1755116930090,0.171,122550.0,122540.0,5.18667835]
[1755116931487,0.171,122550.0,122540.0,4.51631607]
[1755116931717,0.171,122550.0,122540.0,5.18667835]
[1755116932261,0.1742,122550.0,122540.0,5.18667835]
[1755116932658,0.17623,122550.0,122540.0,5.05843835]
[1755116932980,0.17623,122550.0,122540.0,5.18663835]
[1755116933409,0.17623,122550.0,122540.0,4.85145721]
[1755116933624,0.17623,122550.0,122540.0,5.18663835]
[1755116934084,0.17623,122550.0,122540.0,4.85145721]
[1755116934701,0.17623,122550.0,122540.0,4.96322723]
[1755116935880,0.25895325,122550.0,122540.0,4.38807607]
[1755116936086,0.25895325,122550.0,122540.0,4.51627607]
[1755116937450,0.77342343,122550.0,122540.0,4.38807607]
[1755116937670,0.77342343,122550.0,122540.0,4.51627607]
[1755116937818,0.79789243,122550.0,122540.0,4.51627607]
[1755116938172,0.35094127,122550.0,122540.0,4.51627607]
[1755116938331,0.79789243,122550.0,122540.0,4.51627607]
[1755116942814,0.79789243,122550.0,122540.0,4.38807607]
[1755116943189,0.79789243,122550.0,122540.0,4.51627607]
[1755116951115,0.79789243,122550.0,122540.0,4.38807607]
[1755116951373,0.79789243,122550.0,122540.0,4.51627607]
[1755116954066,0.79689243,122550.0,122540.0,4.51327607]
[1755116954727,0.68528665,122550.0,122540.0,4.51327607]
[1755116955129,0.68528665,122550.0,122540.0,4.51027607]
[1755116955342,0.68628665,122550.0,122540.0,4.51027607]
[1755116955549,0.68728665,122550.0,122540.0,4.51027607]
[1755116955665,0.68628665,122550.0,122540.0,4.51027607]
[1755116956118,0.68828665,122550.0,122540.0,4.38207607]
[1755116956330,0.68828665,122550.0,122540.0,4.51027607]
[1755116956532,0.69935814,122550.0,122540.0,4.51027607]
[1755116956937,0.36401276,122550.0,122540.0,4.51027607]
[1755116957083,0.69935814,122550.0,122540.0,4.51027607]
[1755116957460,0.69935814,122550.0,122540.0,4.38207607]
[1755116957654,0.69935814,122550.0,122540.0,4.51027607]
[1755116958275,0.69935814,122550.0,122540.0,4.38207607]
[1755116958451,1.03470352,122550.0,122540.0,4.51027607]
[1755116960262,0.69935814,122550.0,122540.0,4.51027607]
[1755116961367,0.30287127,122550.0,122540.0,4.38207607]
[1755116961523,0.63821665,122550.0,122540.0,4.51023607]
[1755116962685,0.74997006,122550.0,122540.0,4.51023607]
[1755116967240,0.76524322,122550.0,122540.0,4.51023607]
[1755116967463,0.76524292,122550.0,122540.0,4.51023607]
[1755116967696,0.74474006,122550.0,122540.0,4.51023607]
[1755116968096,0.75003006,122550.0,122540.0,4.51023607]
[1755116968741,0.75003006,122550.0,122540.0,4.40851607]
[1755116971319,0.76530401,122550.0,122540.0,4.40851607]
[1755116971586,0.75003006,122550.0,122540.0,4.40851607]
[1755116972103,0.76530436,122550.0,122540.0,4.40851607]
[1755116973459,0.76530498,122550.0,122540.0,4.40847607]
[1755116974112,0.75003006,122550.0,122540.0,4.40847607]
[1755116974289,0.76530496,122550.0,122540.0,4.40847607]
[1755116974460,0.75003006,122550.0,122540.0,4.40847607]
[1755116975142,0.76530515,122550.0,122540.0,4.40847607]
[1755116975755,0.86531415,122550.0,122540.0,4.40847607]
[1755116975967,0.86531415,122550.0,122540.0,4.28035607]
[1755116976280,0.86531415,122550.0,122540.0,4.40847607]
[1755116977854,0.41821536,122550.0,122540.0,4.28035607]
[1755116978030,0.86531415,122550.0,122540.0,4.40843607]
[1755116978270,0.86531415,122550.0,122540.0,4.28035607]
[1755116978476,0.86531415,122550.0,122540.0,4.40843607]
[1755116981402,0.86320415,122550.0,122540.0,4.40843607]
[1755116981607,0.84792906,122550.0,122540.0,4.40843607]
[1755116982341,0.8632081,122550.0,122540.0,4.40843607]
[1755116982547,0.8653181,122550.0,122540.0,4.40843607]
[1755116982754,0.85003906,122550.0,122540.0,4.40843607]
[1755116983675,0.86531905,122550.0,122540.0,4.40843607]
[1755116984738,0.75355791,122550.0,122540.0,4.40843607]
[1755116986273,0.73827792,122550.0,122540.0,4.40843607]
[1755116986762,0.75355933,122550.0,122540.0,4.40843607]
[1755116988519,0.73827792,122550.0,122540.0,4.40843607]
[1755116989481,0.75355908,122550.0,122540.0,4.40843607]
[1755116990109,0.73827792,122550.0,122540.0,4.40843607]
[1755116996854,0.73298792,122550.0,122540.0,4.40843607]
[1755116998050,0.73808792,122550.0,122540.0,4.40843607]
[1755116998898,0.73808792,122550.0,122540.0,4.22683726]
[1755116999953,0.73808792,122550.0,122540.0,4.22671726]
[1755117001179,0.40275027,122550.0,122540.0,4.22671726]
[1755117001557,0.73808792,122550.0,122540.0,4.22671726]
[1755117002181,1.07342557,122550.0,122540.0,4.09875726]
[1755117002390,0.73808792,122550.0,122540.0,4.22671726]
[1755117003335,0.40275027,122550.0,122540.0,4.22671726]
[1755117003522,0.73808792,122550.0,122540.0,4.22671726]
[1755117003878,0.73808792,122550.0,122540.0,4.09875726]
[1755117004089,0.40275027,122550.0,122540.0,4.09875726]
[1755117004318,0.73608792,122550.0,122540.0,4.22667726]
[1755117004560,0.73608792,122550.0,122540.0,4.09875726]
[1755117004690,0.73608792,122550.0,122540.0,4.22667726]
[1755117005042,0.40075027,122550.0,122540.0,4.22667726]
[1755117005291,0.39765027,122550.0,122540.0,4.22667726]
[1755117005506,0.24765027,122550.0,122540.0,4.56201491]
[1755117005740,0.39765027,122550.0,122540.0,4.76943256]
[1755117005954,0.23020125,122550.0,122540.0,4.89735256]
[1755117006157,0.38020125,122550.0,122540.0,4.76943256]
[1755117006367,0.28019225,122550.0,122540.0,4.89735256]
[1755117006741,0.28019225,122550.0,122540.0,4.67357845]
[1755117007118,0.28019225,122550.0,122540.0,4.22667726]
[1755117007323,0.27919225,122550.0,122540.0,4.67357845]
[1755117007725,0.25472325,122550.0,122540.0,4.67357845]
[1755117009703,0.02,122550.0,122540.0,4.67457845]
[1755117009914,0.021,122550.0,122540.0,4.67457845]
[1755117010133,0.021,122550.0,122540.0,4.67357845]
[1755117010360,0.021,122550.0,122540.0,4.67557845]
[1755117010509,0.021,122550.0,122540.0,4.67757845]
[1755117011412,0.021,122550.0,122540.0,4.67753845]
[1755117011789,0.021,122550.0,122540.0,4.23063726]
[1755117011991,0.021,122550.0,122540.0,4.67753845]
[1755117013815,0.02,122550.0,122540.0,4.67353845]
[1755117014024,0.02,122550.0,122540.0,4.54565845]
[1755117014237,0.021,122550.0,122540.0,4.67849845]
[1755117014745,0.021,122550.0,122540.0,4.55065845]
[1755117014958,0.021,122550.0,122540.0,4.67849845]
[1755117015705,0.021,122550.0,122540.0,4.70296145]
[1755117017023,0.02,122550.0,122540.0,4.69796145]
[1755117017241,0.02,122550.0,122540.0,4.69996145]
[1755117017446,0.02,122550.0,122540.0,4.70196145]
[1755117017627,0.02,122550.0,122540.0,4.84632145]
[1755117019335,0.02,122550.0,122540.0,4.84628145]
[1755117021158,0.02,122550.0,122540.0,4.9290047]
[1755117021602,0.02,122550.0,122540.0,5.2263647]
[1755117023093,0.02,122550.0,122540.0,4.77946351]
[1755117023309,0.02,122550.0,122540.0,5.2263647]
[1755117024241,0.02,122550.0,122540.0,5.0985647]
[1755117024479,0.02,122550.0,122540.0,4.9968447]
[1755117024654,0.02,122550.0,122540.0,5.44374589]
[1755117024866,0.02,122550.0,122540.0,5.57150589]
[1755117026342,0.02,122550.0,122540.0,5.65722589]
[1755117026545,0.02,122550.0,122540.0,5.57150589]
[1755117026746,0.02,122550.0,122540.0,5.37586589]
[1755117027241,0.02,122550.0,122540.0,5.24810589]
[1755117027442,0.02,122550.0,122540.0,5.37586589]
[1755117028838,0.02,122550.0,122540.0,5.37582589]
[1755117030293,0.02,122550.0,122540.0,5.24810589]
[1755117030510,0.120009,122550.0,122540.0,5.37582589]
[1755117031523,0.120009,122550.0,122540.0,5.67314589]
[1755117031934,0.120009,122550.0,122540.0,5.54542589]
[1755117032171,0.120009,122550.0,122540.0,5.71853261]
[1755117032564,0.120009,122550.0,122540.0,5.71653261]
[1755117033176,0.120009,122550.0,122540.0,5.71453261]
[1755117033400,0.120009,122550.0,122540.0,5.61581261]
[1755117033549,0.120009,122550.0,122540.0,5.61781261]
[1755117033750,0.120009,122550.0,122540.0,5.59742589]
[1755117033993,0.120009,122550.0,122540.0,5.57242589]
[1755117034190,0.120009,122550.0,122540.0,5.59742589]
[1755117034994,0.120009,122550.0,122540.0,5.24910589]
[1755117035205,0.120009,122550.0,122540.0,5.40178589]
[1755117036100,0.120009,122550.0,122540.0,5.42217261]
[1755117036726,0.120009,122550.0,122540.0,5.40178589]
[1755117038717,0.120009,122550.0,122540.0,5.61781002]
[1755117038935,0.120009,122550.0,122540.0,5.5974233]
[1755117040204,0.120009,122550.0,122540.0,5.5954233]
[1755117040413,0.120009,122550.0,122540.0,6.5561013]
[1755117040625,0.120009,122550.0,122540.0,6.3280723]
[1755117040835,0.120009,122550.0,122540.0,6.3230723]
[1755117041133,0.120009,122550.0,122540.0,6.2003923]
[1755117041358,0.11732239,122550.0,122540.0,6.4138223]
[1755117041571,0.11137406,122550.0,122540.0,6.73148902]
[1755117041786,0.11137406,122550.0,122540.0,6.72948902]
[1755117041998,0.11137406,122550.0,122540.0,6.73248902]
[1755117042637,0.10519984,122550.0,122540.0,6.63080902]
[1755117042865,0.08146867,122550.0,122540.0,6.63080902]
[1755117043092,0.08146867,122550.0,122540.0,6.43520902]
[1755117043807,0.08146867,122550.0,122540.0,6.43220902]
[1755117044025,0.08146867,122550.0,122540.0,6.42920902]
[1755117044240,0.08146867,122550.0,122540.0,6.43520902]
[1755117044911,0.07537159,122550.0,122540.0,6.43520902]
[1755117045679,0.06882096,122550.0,122540.0,6.43520902]
[1755117045891,0.06882096,122550.0,122540.0,6.30756902]
[1755117046105,0.06882096,122550.0,122540.0,6.43516902]
[1755117046544,0.06882096,122550.0,122540.0,5.41376664]
[1755117046788,0.06882096,122550.0,122540.0,5.83196129]
[1755117047016,0.06882096,122550.0,122540.0,5.9877479]
[1755117047192,0.06882096,122550.0,122540.0,5.8601479]
[1755117047343,0.06882096,122550.0,122540.0,5.9877479]
[1755117049083,0.06882096,122550.0,122540.0,5.8601479]
[1755117049286,0.06882096,122550.0,122540.0,5.8673291]
[1755117049501,0.06882096,122550.0,122540.0,5.9949291]
[1755117049675,0.06882096,122550.0,122540.0,6.01531582]
[1755117050075,0.06882096,122550.0,122540.0,6.03276484]
[1755117050878,0.06286957,122550.0,122540.0,6.03276484]
[1755117051078,0.04956925,122550.0,122540.0,6.03276484]
[1755117051504,0.04956925,122550.0,122540.0,6.33000484]
[1755117053625,0.04956925,122550.0,122540.0,6.32700484]
[1755117053828,0.04956925,122550.0,122540.0,6.32600484]
[1755117054275,0.04956925,122550.0,122540.0,6.32800484]
[1755117054725,0.04956925,122550.0,122540.0,6.03076484]
[1755117056745,0.04956925,122550.0,122540.0,6.01037812]
[1755117057152,0.04956925,122550.0,122540.0,6.02919744]
[1755117059152,0.04142318,122550.0,122540.0,6.02919744]
[1755117059334,0.03327711,122550.0,122540.0,6.02919744]
[1755117059732,0.02513104,122550.0,122540.0,6.01037812]
[1755117060096,0.01698497,122550.0,122540.0,6.01037812]
[1755117060308,0.01698497,122550.0,122540.0,6.02919744]
[1755117060514,0.0088389,122550.0,122540.0,6.02919744]
[1755117060698,0.0088389,122550.0,122540.0,5.88277812]
[1755117060898,0.00069283,122550.0,122540.0,6.01029812]
[1755117061104,0.00069283,122550.0,122540.0,5.88277812]
[1755117061307,0.0031,122560.0,122550.0,0.40744902]
[1755117061507,0.00521,122560.0,122550.0,2.90746265]
[1755117061733,0.00521,122560.0,122550.0,2.89172565]
[1755117062058,0.00521,122560.0,122550.0,3.07937534]
[1755117062334,0.00521,122560.0,122550.0,2.70000665]
[1755117062524,0.00521,122560.0,122550.0,2.59546965]
[1755117062711,0.00521,122560.0,122550.0,2.75866834]
[1755117062903,0.00521,122560.0,122550.0,2.63114834]
[1755117063104,0.00521,122560.0,122550.0,2.78359798]
[1755117063275,0.00521,122560.0,122550.0,2.68291798]
[1755117063680,0.00521,122560.0,122550.0,2.48735798]
[1755117064088,0.00521,122560.0,122550.0,2.35983798]
[1755117064689,0.00521,122560.0,122550.0,2.48735798]
[1755117065599,0.0031,122560.0,122550.0,2.48735798]
[1755117066222,0.0031,122560.0,122550.0,2.35983798]
[1755117066373,0.00521,122560.0,122550.0,2.48735798]
[1755117069484,0.00521,122560.0,122550.0,2.35983798]
[1755117069687,0.00521,122560.0,122550.0,2.48731798]
[1755117070151,0.00521,122560.0,122550.0,2.35983798]
[1755117070372,0.00521,122560.0,122550.0,2.48731798]
[1755117070528,0.00521,122560.0,122550.0,2.63404536]
[1755117070735,0.00521,122560.0,122550.0,3.74935024]
[1755117071279,0.00521,122560.0,122550.0,3.60262286]
[1755117071481,0.00521,122560.0,122550.0,3.89982286]
[1755117071688,0.00521,122560.0,122550.0,4.09056845]
[1755117073101,0.00521,122560.0,122550.0,4.09052845]
[1755117073302,0.00521,122560.0,122550.0,3.96308845]
[1755117073569,0.00521,122560.0,122550.0,3.92732976]
[1755117073792,0.11691771,122600.0,122570.0,0.365]
[1755117074028,0.00211,122580.0,122570.0,0.62789]
[1755117074237,0.00211,122580.0,122570.0,0.75533]
[1755117074525,0.04839,122580.0,122570.0,0.779782]
[1755117074946,0.04839,122580.0,122570.0,0.652342]
[1755117075153,0.04839,122580.0,122570.0,1.75933563]
[1755117075410,0.04839,122580.0,122570.0,1.78433563]
[1755117075627,0.04939,122580.0,122570.0,1.78433563]
[1755117075759,0.05249,122580.0,122570.0,1.78433563]
[1755117075967,0.05249,122580.0,122570.0,1.86705888]
[1755117076949,0.05249,122580.0,122570.0,1.84205888]
[1755117077160,0.05249,122580.0,122570.0,2.01356208]
[1755117077616,0.05249,122580.0,122570.0,1.88612208]
[1755117077845,0.05249,122580.0,122570.0,1.98856208]
[1755117078064,0.05249,122580.0,122570.0,1.88612208]
[1755117078283,0.05249,122580.0,122570.0,2.01356208]
[1755117081626,0.05249,122580.0,122570.0,2.31076208]
[1755117081808,0.00621,122580.0,122570.0,2.31281208]
[1755117081960,0.00621,122580.0,122570.0,2.31076208]
[1755117082834,0.00621,122580.0,122570.0,2.18332208]
[1755117083037,0.00621,122580.0,122570.0,2.31072208]
[1755117085036,0.00621,122580.0,122570.0,2.28572208]
[1755117085304,0.00621,122580.0,122570.0,2.08164208]
[1755117085552,0.00621,122580.0,122570.0,2.20904208]
[1755117086456,0.00621,122580.0,122570.0,2.06253888]
[1755117086694,0.00621,122580.0,122570.0,2.03753888]
[1755117086915,0.00621,122580.0,122570.0,2.06253888]
[1755117087320,0.00621,122580.0,122570.0,1.86701888]
[1755117087529,0.00621,122580.0,122570.0,1.84704854]
[1755117088692,0.00621,122580.0,122570.0,1.82204854]
[1755117088883,0.00621,122580.0,122570.0,1.84704854]
[1755117089082,0.001,122580.0,122570.0,1.52701888]
[1755117091136,0.001,122580.0,122570.0,1.86701888]
[1755117091341,0.001,122580.0,122570.0,1.84201888]
[1755117091565,0.001,122580.0,122570.0,2.16421888]
[1755117092007,0.001,122580.0,122570.0,2.16417888]
[1755117092152,0.001,122580.0,122570.0,2.03681888]
[1755117092361,0.001,122580.0,122570.0,2.16417888]
[1755117092607,0.001,122580.0,122570.0,2.13917888]
[1755117092906,0.001,122580.0,122570.0,2.16417888]
[1755117093125,0.00618,122580.0,122570.0,1.93513888]
[1755117093303,0.00618,122580.0,122570.0,2.06245888]
[1755117094831,0.00618,122580.0,122570.0,1.86693888]
[1755117097033,0.00618,122580.0,122570.0,1.84193888]
[1755117097303,0.00618,122580.0,122570.0,1.86693888]
[1755117097851,0.00618,122580.0,122570.0,1.86906888]
[1755117098674,0.00618,122580.0,122570.0,1.84406888]
[1755117098869,0.00618,122580.0,122570.0,1.86906888]
[1755117099076,0.00618,122580.0,122570.0,2.01559551]
[1755117099279,0.00618,122580.0,122570.0,1.99059551]
[1755117099485,0.00618,122580.0,122570.0,2.01559551]
[1755117101129,0.00618,122580.0,122570.0,1.1863343]
[1755117101524,0.00618,122580.0,122570.0,1.46424767]
[1755117101967,0.001,122580.0,122570.0,1.91226888]
[1755117102106,0.001,122580.0,122570.0,3.64635257]
[1755117102317,0.06684771,122640.0,122600.0,0.025]
[1755117102520,0.06684771,122640.0,122630.0,0.66970242]
[1755117102726,0.06899771,122640.0,122630.0,0.79698242]
[1755117103144,0.07202771,122640.0,122630.0,0.79698242]
[1755117103375,0.07202771,122640.0,122630.0,0.6902134]
[1755117103531,0.00518,122640.0,122630.0,0.8174934]
[1755117103748,0.05206991,122640.0,122630.0,0.46213121]
[1755117104654,0.05206991,122640.0,122630.0,0.57348102]
[1755117104852,0.05706991,122640.0,122630.0,0.57348102]
[1755117105269,0.06106991,122640.0,122610.0,0.46767823]
[1755117105478,0.05803991,122640.0,122610.0,0.44716725]
[1755117105719,0.05803991,122640.0,122630.0,0.44620102]
[1755117105870,0.05803991,122640.0,122630.0,0.57344102]
[1755117106077,0.05206991,122640.0,122630.0,0.57344102]
[1755117107083,0.05206991,122640.0,122630.0,0.45555021]
[1755117107608,0.05206991,122640.0,122630.0,0.58279021]
[1755117108406,0.05206991,122640.0,122630.0,0.60330119]
[1755117108612,0.05206991,122640.0,122630.0,0.58279021]
[1755117109549,0.05506991,122640.0,122630.0,0.58279021]
[1755117109772,0.05706991,122640.0,122630.0,0.58279021]
[1755117110373,0.05706991,122640.0,122630.0,0.60330119]
[1755117110576,0.05706991,122640.0,122630.0,0.58279021]
[1755117111119,0.00211991,122640.0,122630.0,0.48253986]
[1755117111250,0.00511991,122640.0,122630.0,0.60973986]
[1755117111465,0.00511991,122640.0,122630.0,1.33284311]
[1755117111663,0.00911991,122640.0,122630.0,1.77904413]
[1755117112600,0.00011991,122640.0,122630.0,1.23120311]
[1755117112780,0.00311991,122640.0,122630.0,1.23120311]
[1755117112985,0.00711991,122640.0,122630.0,1.22185392]
[1755117113245,0.00411991,122640.0,122630.0,1.22185392]
[1755117113940,0.00411991,122640.0,122630.0,1.23160213]
[1755117114611,0.00711991,122640.0,122630.0,1.23160213]
[1755117115930,0.00711991,122640.0,122630.0,1.03604213]
[1755117116275,0.00711991,122640.0,122630.0,0.90888213]
[1755117116481,0.00711991,122640.0,122630.0,1.61797315]
[1755117116743,0.00711991,122640.0,122630.0,1.77013315]
[1755117117042,0.00711991,122640.0,122630.0,1.66797315]
[1755117117179,0.00711991,122640.0,122630.0,1.79513315]
[1755117117712,0.00311991,122640.0,122630.0,1.79513315]
[1755117118123,0.00411991,122640.0,122630.0,1.66797315]
[1755117118442,0.00111991,122640.0,122630.0,1.66797315]
[1755117118600,0.00211991,122640.0,122630.0,1.79509315]
[1755117119014,0.00211991,122640.0,122630.0,1.66797315]
[1755117119245,0.00211991,122640.0,122630.0,1.79509315]
[1755117119713,0.00211991,122640.0,122630.0,1.24620913]
[1755117119914,0.00211991,122640.0,122630.0,1.37332913]
[1755117120190,0.00211991,122640.0,122630.0,1.34889213]
[1755117120765,0.00211991,122640.0,122630.0,1.79509315]
[1755117121062,0.00729991,122640.0,122630.0,0.74735111]
[1755117121269,0.00211991,122640.0,122630.0,1.32381213]
[1755117121504,0.00211991,122640.0,122630.0,1.59589213]
[1755117121670,0.00211991,122640.0,122630.0,1.49377213]
[1755117122070,0.00211991,122640.0,122630.0,1.39213213]
[1755117122270,0.00211991,122640.0,122630.0,1.49425213]
[1755117122538,0.00211991,122640.0,122630.0,1.51925213]
[1755117122688,0.00211991,122640.0,122630.0,1.39213213]
[1755117122896,0.00211991,122640.0,122630.0,1.49425213]
[1755117123254,0.00211991,122640.0,122630.0,1.51925213]
[1755117123464,0.00211991,122640.0,122630.0,1.49425213]
[1755117123670,0.00211991,122640.0,122630.0,1.51925213]
[1755117123975,0.00211991,122640.0,122630.0,1.32061213]
[1755117124402,0.00211991,122640.0,122630.0,1.19353213]
[1755117124581,0.00211991,122640.0,122630.0,1.29561213]
[1755117124776,0.00211991,122640.0,122630.0,1.32061213]
[1755117125615,0.00408991,122640.0,122630.0,1.32061213]
[1755117126450,0.00729991,122640.0,122630.0,1.32061213]
[1755117127526,0.00729991,122640.0,122630.0,1.29561213]
[1755117127708,0.00729991,122640.0,122630.0,1.32061213]
[1755117128150,0.00729991,122640.0,122630.0,1.19353213]
[1755117128381,0.00729991,122640.0,122630.0,0.84730111]